Cogmind - Beta 17 @@@ ROGUE MODE // 2026.08.03 @ 16:44:16 Player: Sysandra Result: Destroyed by X-67 Chaingunner with Minigun Performance ------------- Evolutions (3) 1500 Regions Visited (5) 1000 Robots Destroyed (13) 65 Value Destroyed (395) 395 Prototype IDs (3) 60 Alien Tech Used (0) 0 Bonus (500) 500 TOTAL SCORE: 3520 Bonus ------- Entered DSFs 500 Cogmind --------- Core Integrity 0/700 Matter 265/300 Energy 0/100 System Corruption 0% Temperature Cool (9) Movement Core (100) Ox1 Location -7/DSF Parts ------- > --- POWER (2) -------- (None) > --- PROPULSION (4) --- (None) > --- UTILITY (5) ------ Improved Actuator Array > --- WEAPON (2) ------- (None) > --- INVENTORY (5) ---- (None) Peak State ------------ > --- POWER ------------ Light Deuterium Engine Light Nuclear Core > --- PROPULSION ------- Light Treads > --- UTILITY ---------- Improved Heat Sink Sensor Array Light Armor Plating > --- WEAPON ----------- Heavy Particle Gun Heavy Particle Gun > --- INVENTORY -------- (None) [Rating: 20] Favorites ----------- Power Light Nuclear Core Engine Light Deuterium Engine Power Core Light Nuclear Core Propulsion Wheel Treads Light Treads Wheel Wheel Flight Unit Flight Unit Utility Sensor Array Device Sensor Array Processor Improved Terrain Scan Processor Protection Light Armor Plating Weapon Heavy Particle Gun Energy Gun Heavy Particle Gun Build | -11 -10 -9 -8 -7 -7 ------- Run | Yrd Mat Mat Mat Fac DSF Slots Evolved 6 | . . 2 2 2 . Power 1 | . . . 1 . . Propulsion 2 | . . 1 . 1 . Utility 3 | . . 1 1 1 . Weapon . | . . . . . . Parts Attached 27 | 7 1 1 12 2 4 Power 4 | 1 . . 3 . . Engine 3 | 1 . . 2 . . Core 1 | . . . 1 . . Reactor . | . . . . . . Propulsion 7 | 2 . 1 4 . . Treads 1 | . . . 1 . . Leg . | . . . . . . Wheel 3 | 2 . 1 . . . Hover . | . . . . . . Flight 3 | . . . 3 . . Utility 10 | 2 1 . 2 1 4 Device 6 | 2 1 . 1 . 2 Storage . | . . . . . . Processor 1 | . . . . 1 . Hackware . | . . . . . . Protection 3 | . . . 1 . 2 Artifact . | . . . . . . Weapon 6 | 2 . . 3 1 . Energy Gun 6 | 2 . . 3 1 . Energy Cannon . | . . . . . . Ballistic Gun . | . . . . . . Ballistic Cannon . | . . . . . . Launcher . | . . . . . . Special Weapon . | . . . . . . Impact Weapon . | . . . . . . Slashing Weapon . | . . . . . . Piercing Weapon . | . . . . . . Special Melee Weapon . | . . . . . . Unidentified Prototypes 1 | . . . 1 . . Parts Lost 19 | . . 2 12 . 5 Power 3 | . . . 3 . . Propulsion 4 | . . 1 3 . . Utility 7 | . . . 3 . 4 Weapon 5 | . . 1 3 . 1 Highest Loss Streak 6 | . . 1 6 . 5 To Critical Strikes . | . . . . . . Average Backups . | . . . . . . Power . | . . . . . . Propulsion . | . . . . . . Utility . | . . . . . . Weapon . | . . . . . . Tool/Special . | . . . . . . Unused Backups 2 | . . . 2 . . Power . | . . . . . . Propulsion . | . . . . . . Utility . | . . . . . . Weapon 2 | . . . 2 . . Tool/Special . | . . . . . . Average Slot Usage (%) 57 | . 86 58 55 15 22 Engine 4 | . 7 . 5 . . Core 2 | . . . 5 . . Treads 2 | . . . 5 . . Wheel 7 | . 21 14 . . . Flight 1 | . . . 3 . . Device 18 | . 28 22 16 7 10 Protection 2 | . . . 5 . 2 Energy Gun 16 | . 28 22 12 2 4 Peak Build Rating 20 | 9 9 9 20 8 16 Average Rating 10 | 4 8 8 14 6 8 On Entrance 5 | . 9 7 7 3 8 Avg Prop Armor Cover (%) 6 | . . . 6 . . Naked Turns . | . . . . . . Heaviest Build 21 | 8 8 5 21 4 20 Greatest Support 22 | 20 20 22 20 3 3 Greatest Overweight (x) 6 | . . . 1 1 6 Average Overweight (x) . | . . . . . 1 Largest Inventory Capacity 5 | 5 5 5 5 5 5 Average Capacity 5 | 5 5 5 5 5 5 Most Carried 3 | 2 1 1 3 2 3 Average Carried . | . . . . . . Final Capacity 5 | 5 5 5 5 5 5 Final Carried 1 | . . 1 1 . . Class Distribution -------------------- 71% | Mutant 28% | Scavenger-Mutant Dominant Class ---------------- Mutant | -10/Materials Mutant | -9/Materials Scavenger-Mutant | -8/Materials Mutant | -7/Factory Mutant | -7/DSF Resources | -11 -10 -9 -8 -7 -7 ----------- Run | Yrd Mat Mat Mat Fac DSF Matter Collected 382 | 270 . 7 105 . . Remotely . | . . . . . . Salvage Created 468 | 60 . 79 329 . . Parts 30 | 9 . 2 19 . . Haulers Intercepted . | . . . . . . Recyclers Shooed . | . . . . . . Parts Field Recycled . | . . . . . . Retrieved Matter . | . . . . . . Parts Self-Destructed . | . . . . . . Prevented . | . . . . . . Parts Restored . | . . . . . . Kills | -11 -10 -9 -8 -7 -7 ------- Run | Yrd Mat Mat Mat Fac DSF Combat Hostiles Destroyed 11 | 1 . 2 8 . . Guns 9 | . . 2 7 . . Classes Destroyed 4 | 2 . . 2 . . Tunneler 2 | 2 . . . . . Swarmer 3 | . . . 3 . . Grunt 7 | 1 . 2 4 . . Sentry 1 | . . . 1 . . Best Kill Streak 3 | 3 . 2 3 . . Combat Bots Only 3 | 1 . 2 3 . . Max Kills in Single Turn 1 | 1 . 1 1 . . Gunslinging . | . . . . . . Exploded . | . . . . . . Melee . | . . . . . . Uniques/NPCs Destroyed . | . . . . . . Combat | -11 -10 -9 -8 -7 -7 -------- Run | Yrd Mat Mat Mat Fac DSF Hostile Shots Fired 203 | 5 1 26 87 . 84 Missed 60 | 1 . 7 24 . 28 Hits 143 | 4 1 19 63 . 56 Projectile 143 | 4 1 19 63 . 56 Critical Strikes 8 | . . 1 2 . 5 Damage Taken 2664 | 45 10 284 979 . 1346 Core 1102 | . . 122 279 . 701 Absorbed by Shields 12 | . . . . . 12 Core Remaining (%) 79 | 100 100 69 49 . . Volleys Fired 50 | 6 3 7 32 . 2 Largest 2 | 2 2 2 2 . 1 Hottest 110 | 90 90 90 110 . 65 Shots Fired 79 | 12 6 14 45 . 2 Gun 79 | 12 6 14 45 . 2 Cannon . | . . . . . . Launcher . | . . . . . . Special . | . . . . . . Kinetic . | . . . . . . Thermal 79 | 12 6 14 45 . 2 Explosive . | . . . . . . Electromagnetic . | . . . . . . Robot Hit Streak 16 | 5 1 8 15 . 16 Robot Miss Streak 4 | 1 4 4 3 . 1 Penetration Max . | . . . . . . Secondary Targets 1 | . . . 1 . . Max Gunslinging Chain 1 | . . . 1 . . Shots Hit Robots 51 | 9 1 9 31 . 1 Core Hits 25 | 3 . 5 17 . . Critical Kills . | . . . . . . Critical Parts Destroyed . | . . . . . . Critical Strikes 4 | 1 . 1 2 . . Burn 4 | 1 . 1 2 . . Melee Attacks . | . . . . . . Impact . | . . . . . . Slashing . | . . . . . . Piercing . | . . . . . . Sneak Attacks . | . . . . . . Combat Hostiles . | . . . . . . Follow-up Attacks . | . . . . . . Damage Inflicted 859 | 123 12 108 602 . 14 Guns 846 | 123 12 103 594 . 14 Cannons . | . . . . . . Explosions . | . . . . . . Melee . | . . . . . . Ramming 13 | . . 5 8 . . Kinetic . | . . . . . . Thermal 846 | 123 12 103 594 . 14 Explosive . | . . . . . . Electromagnetic . | . . . . . . Impact . | . . . . . . Slashing . | . . . . . . Piercing . | . . . . . . Highest Corruption . | . . . . . . Average Corruption . | . . . . . . Corruption Purged . | . . . . . . Corruption Blocked . | . . . . . . Overload Shots . | . . . . . . Overflow Damage . | . . . . . . Projectiles . | . . . . . . Explosions . | . . . . . . Melee . | . . . . . . Knockbacks . | . . . . . . Impact . | . . . . . . Kinetic . | . . . . . . Secondary . | . . . . . . Self-Inflicted Damage 2 | . . 2 . . . Shots . | . . . . . . Rammed 6 | . . 2 4 . . Targets Rammed 6 | . . 2 4 . . Kicked . | . . . . . . Crushed . | . . . . . . Highest Temperature 388 | 78 36 81 388 . . Average Temperature 93 | 39 17 28 140 . . Received Heat Transfer 809 | 24 6 144 495 . 140 Effects 1 | . . . 1 . . Shutdowns 1 | . . . 1 . . Siege Activations . | . . . . . . Martial Activations . | . . . . . . Shielding Activations . | . . . . . . Robots Disrupted . | . . . . . . Combat Hostiles . | . . . . . . Robots Corrupted . | . . . . . . Combat Hostiles . | . . . . . . Parts Fried . | . . . . . . Impact Corruptions . | . . . . . . Robots Melted 2 | 1 . . 1 . . Combat Hostiles 2 | 1 . . 1 . . Parts Melted 5 | . . 1 4 . . Heat Transferred 2138 | 396 37 347 1321 . 37 Parts Sabotaged . | . . . . . . Parts Stolen . | . . . . . . Parts Stripped . | . . . . . . Power Chain Reactions . | . . . . . . Alert | -11 -10 -9 -8 -7 -7 ------- Run | Yrd Mat Mat Mat Fac DSF Maximum Alert Level . | . . . . . . Low Security (%) 100 | 100 100 100 100 100 100 Level 1 . | . . . . . . Level 2 . | . . . . . . Level 3 . | . . . . . . Level 4 . | . . . . . . Level 5 . | . . . . . . High Security . | . . . . . . Max Security . | . . . . . . Peak Influence 78 | 20 30 40 78 13 . Initial 13 | . 6 12 8 13 . Average 16 | 5 4 9 26 7 . Influence Increases 407 | 30 47 50 275 5 . Destroy 0b10 Robot/C 220 | 20 . 40 160 . . Destroy 0b10 Robot/NC 10 | 10 . . . . . Destroy Leader 50 | . . 10 40 . . Successful Hack 7 | . 2 . . 5 . Partial Spotted 15 | . . . 15 . . Lose Combat Pursuer 105 | . 45 . 60 . . Influence Decreases 407 | 20 27 60 265 35 . Entered New Map 51 | . 4 18 12 17 . Time Decay 265 | 20 23 32 172 18 . Lost Part 91 | . . 10 81 . . Squads Dispatched 3 | . . 1 1 . 1 Investigation 1 | . . . 1 . . Extermination . | . . . . . . Reinforcement 2 | . . 1 . . 1 Assault . | . . . . . . Garrison . | . . . . . . Intercept . | . . . . . . Searches Triggered . | . . . . . . Construction Impeded . | . . . . . . Haulers Reinforced . | . . . . . . Active Scanning Responses . | . . . . . . Cargo Convoy Interrupts . | . . . . . . Stealth | -11 -10 -9 -8 -7 -7 --------- Run | Yrd Mat Mat Mat Fac DSF Distress Signals 2 | . 2 . . . . Communications Jammed . | . . . . . . Distress Signals . | . . . . . . Times Spotted 38 | 1 5 6 20 1 5 Peak Tracking Total 7 | 1 4 3 7 1 5 Tactical Retreats 5 | . 2 . 3 . . Traps | -11 -10 -9 -8 -7 -7 ------- Run | Yrd Mat Mat Mat Fac DSF Traps Triggered 1 | . 1 . . . . Indirectly . | . . . . . . Trap Hack Attempts . | . . . . . . Triggered . | . . . . . . Disarmed . | . . . . . . Reprogrammed . | . . . . . . Reused . | . . . . . . Traps Extracted . | . . . . . . Installed . | . . . . . . Triggered . | . . . . . . Machines | -11 -10 -9 -8 -7 -7 ---------- Run | Yrd Mat Mat Mat Fac DSF Machines Disabled . | . . . . . . Max in Single Turn . | . . . . . . Garrison Access 1 | . . . 1 . . Machines Repaired . | . . . . . . Machines Dismantled . | . . . . . . Machines Sabotaged . | . . . . . . Overloaded Fab Kills . | . . . . . . Hacking | -11 -10 -9 -8 -7 -7 --------- Run | Yrd Mat Mat Mat Fac DSF Machines Accessed 7 | . 4 . 2 1 . Terminals 5 | . 3 . 1 1 . Fabricators . | . . . . . . Repair Stations . | . . . . . . Recycling Units 1 | . 1 . . . . Scanalyzers . | . . . . . . Garrison Access 1 | . . . 1 . . Total Hacks 9 | . 4 . 4 1 . Successful 9 | . 4 . 4 1 . Failed . | . . . . . . Catastrophic . | . . . . . . Database Lockouts . | . . . . . . Manual . | . . . . . . Terminals 7 | . 3 . 3 1 . Fabricators . | . . . . . . Repair Stations . | . . . . . . Recycling Units 1 | . 1 . . . . Scanalyzers . | . . . . . . Garrison Access 1 | . . . 1 . . Terminal Hacks 7 | . 3 . 3 1 . Record 2 | . 2 . . . . Prototype ID Bank 1 | . . . 1 . . Open DSF 1 | . . . . 1 . Alert Level 1 | . . . 1 . . Recall Investigation 1 | . 1 . . . . Zone Layout 1 | . . . 1 . . Fabricator Hacks . | . . . . . . Repair Station Hacks . | . . . . . . Recycling Unit Hacks 1 | . 1 . . . . Report Inventory 1 | . 1 . . . . Scanalyzer . | . . . . . . Garrison Access Hacks 1 | . . . 1 . . Seal Access 1 | . . . 1 . . Unauthorized Hacks . | . . . . . . Terminals . | . . . . . . Fabricators . | . . . . . . Repair Stations . | . . . . . . Recycling Units . | . . . . . . Scanalyzers . | . . . . . . Garrison Access . | . . . . . . Data Cores Recovered . | . . . . . . Used . | . . . . . . Hacking Detections 3 | . 2 . 1 . . Full Trace Events 1 | . . . 1 . . Feedback Events . | . . . . . . Feedback Blocked . | . . . . . . Robot Schematics Acquired . | . . . . . . Robots Built . | . . . . . . Authchips . | . . . . . . Time . | . . . . . . Total Robot Build Rating . | . . . . . . Part Schematics Acquired . | . . . . . . Parts Built . | . . . . . . Authchips . | . . . . . . Time . | . . . . . . Total Part Build Rating . | . . . . . . Part Studies Acquired . | . . . . . . Parts Repaired . | . . . . . . Time . | . . . . . . Parts Recycled . | . . . . . . Recycled Matter . | . . . . . . Retrieved Matter . | . . . . . . Retrieved Components . | . . . . . . Parts Scanalyzed . | . . . . . . Part Schematics Acquired . | . . . . . . Parts Damaged . | . . . . . . Bothacking | -11 -10 -9 -8 -7 -7 ------------ Run | Yrd Mat Mat Mat Fac DSF Used RIF Installer . | . . . . . . Robots Hacked . | . . . . . . Non-combat . | . . . . . . Combat . | . . . . . . Robot Hacks Applied . | . . . . . . Relay Couplers Released . | . . . . . . Fabnet Peak Effective % . | . . . . . . Robots Rewired . | . . . . . . Allies Hacked . | . . . . . . Hacks Repelled . | . . . . . . Allies | -11 -10 -9 -8 -7 -7 -------- Run | Yrd Mat Mat Mat Fac DSF Total Allies . | . . . . . . Largest Group . | . . . . . . Highest-Rated Group . | . . . . . . Highest-Rated Ally . | . . . . . . Total Orders . | . . . . . . Ally Attacks . | . . . . . . Total Damage . | . . . . . . Kills . | . . . . . . Allies Corrupted . | . . . . . . Allies Melted . | . . . . . . Intel | -11 -10 -9 -8 -7 -7 ------- Run | Yrd Mat Mat Mat Fac DSF Active Infowar (turns) 795 | 17 175 155 448 . . Sensors 677 | . 74 155 448 . . Terrain 455 | 17 175 155 108 . . Seismic 112 | 11 101 . . . . Robot Analysis Total . | . . . . . . Derelict Logs Recovered . | . . . . . . Drone Launches . | . . . . . . Drone Recoveries . | . . . . . . Exploration | -11 -10 -9 -8 -7 -7 ------------- Run | Yrd Mat Mat Mat Fac DSF Turns Passed 1011 | 97 175 155 488 40 56 Spaces Moved 783 | 87 204 135 281 45 31 Core 153 | 19 . . 58 45 31 Treads 143 | . . . 143 . . Legs . | . . . . . . Wheels 428 | 68 204 135 21 . . Hover . | . . . . . . Flight 59 | . . . 59 . . Fastest Speed 34 | 50 80 80 34 50 50 Average Speed 99 | 73 80 85 129 75 122 Slowest Speed 350 | 80 80 90 240 100 350 Overloaded Moves . | . . . . . . Propulsion Burnouts . | . . . . . . Robots Hopped . | . . . . . . Potential Cave-ins . | . . . . . . Cave-ins Triggered . | . . . . . . Exploration Rate (%) 21 | 6 41 20 21 2 38 Regions Visited 5 Branch Regions . Pre-discovered Areas . | . . . . . . Known Exits Taken 1 | . . . . 1 . Unknown Exits Taken 4 | 1 1 1 1 . . Scrap Searched . | . . . . . . Spaces Dug . | . . . . . . Terrain Destroyed . | . . . . . . Melee . | . . . . . . Projectile . | . . . . . . AOE . | . . . . . . Terrain Rammed . | . . . . . . Walls Destroyed . | . . . . . . Machines Disabled . | . . . . . . Actions | -11 -10 -9 -8 -7 -7 --------- Run | Yrd Mat Mat Mat Fac DSF Total 936 | 107 210 160 362 50 47 Wait 34 | 1 . 14 10 3 6 Move 778 | 86 203 134 280 44 31 Hop . | . . . . . . Pick Up 30 | 7 1 2 15 1 4 Fast Attach . | . . . . . . Attach 27 | 7 1 1 12 2 4 Detach 4 | . 1 . 3 . . Swap . | . . . . . . Drop 7 | . 1 . 6 . . Fire 50 | 6 3 7 32 . 2 Melee . | . . . . . . Ram 2 | . . 2 . . . Kick . | . . . . . . Crush 4 | . . . 4 . . Escape Stasis . | . . . . . . Rewire . | . . . . . . Trap . | . . . . . . Miscellaneous . | . . . . . . Route ------- -11/Scrapyard -10/Materials -9/Materials -8/Materials -7/Factory -7/DSF History --------- Turn | Location | Event 2 | -11/Scrapyard | Met Revision 17 45 | -11/Scrapyard | Discovered new exit (range 8) 98 | -11/Scrapyard | Entered Materials 263 | -10/Materials | Discovered new exit (range 10) 273 | -10/Materials | Entered another Materials area 273 | -9/Materials | Evolved 2 slots: Propulsion x1, Utility x1 329 | -9/Materials | Build established: Mutant 393 | -9/Materials | Discovered new exit (range 7) 428 | -9/Materials | Entered another Materials area 428 | -8/Materials | Evolved 2 slots: Power x1, Utility x1 527 | -8/Materials | Lost 3 parts (2n1w) 727 | -8/Materials | Discovered new exit (range 17) 892 | -8/Materials | Core integrity fell below 50% 916 | -8/Materials | Entered Factory 916 | -7/Factory | Evolved 2 slots: Propulsion x1, Utility x1 920 | -7/Factory | Lost 6 parts (2p1n2u1w) 955 | -7/Factory | Identified exit to DSF 956 | -7/Factory | Entered DSF 979 | -7/DSF | Additional patrols routed to DSF 992 | -7/DSF | Core integrity fell below 50% 1010 | -7/DSF | Core integrity fell below 20% 1012 | -7/DSF | Destroyed by X-67 Chaingunner with Minigun Last Messages --------------- 00977_ Penetrated by Slug. 00979_ Hostiles detected in DSF, routing additional patrols. 00980_ Particle Gun destroyed. 00980_ Penetrated by Slug. 00985_ Slug penetrates Wall. 00987_ Knocked back. 00990_ Imp. Heat Sink destroyed. 00991_ Hardlight Generator destroyed. 00991_ Critical hit (Blast). 00991_ Knocked back. 00992_ Penetrated by Slug. 00994_ Acquired Imp. Actuator Array. 00998_ Imp. Terrain Scan Processor destroyed. 00998_ Slug penetrates Wall. 01002_ Imp. Medium Armor Plating blasted off. 01002_ Knocked back. 01005_ Imp. Medium Armor Plating destroyed. 01006_ Penetrated by Slug. 01006_ Knocked back. 01012_ Penetrated by Slug. Map ----- +----------------------------------------------------+ | ????????????????????????????????????????????????? | | ????????????????????????????????????????????????? | | ????????????????????????????????????????????????? | | ????????????????????????????????????????????????? | | ????????????????????????????????????????????????? | | ????????????????????????????????????????????????? | | ????????????????????????????????????????????????? | | ????????????????????????????????????????????????? | | ????????????????????????????????????????????????? | | ????????????????????????????????????????????????? | | ?????????????????????? ???????????????????????? | | ????????????????????? ???????????????????????? | | ????????????????????? ???????????????????????? | | ????????????????????## ???????????????????????? | | ????????????????????!! ???????????????????????? | | ?????????????????????! ???????????????????????? | | ?????????????????????! !??????????????????????? | | ???????????????###???# #??????????????????????? | | ????????????*??#!!!?## ##?????????????????????? | | ?????????????**#!!!##a ##????????????????????? | | ??????????????? ?????????????????????? | | ????????????????? ?????????? ????????? | | ??????????????????? ??????????? ????????? | | ????????????????????#a H ??????????? ????????? | | ????????????????????## ##?????????# ????????? | | ???????????????????##; !@##????????# ##???????? | | ???????????????????#!! !!#????????! ????????? | | ???????????????????#!! ! #????????! ????????? | | ???????????????????#!! %!!;????????! ????????? | | ???????????????????#;# ;###??????## ##???????? | | ???????????????????#!!xxx #???????? #???????? | | ???????????????????#!! x % #???????? ????????? | | ???????????????????#!! ########?# #????????? | | ???????????????????### ###! !#!!### ###??????? | | ???????????????#!!!### ###!! # !## ""###????? | | ?????????? """""????? | | ?????????? ""#??????? | | ??????????"##!!# # !!! # # ##"%"""#??????? | | ???????????????###?# !!! #########"""""#??????? | | ???????????????????#########???????##"####??????? | | ????????????????????????????????????#"#?????????? | | ????????????????????????????????????#""?????????? | | ?????????????????????????????????????##?????????? | | ????????????????????????????????????????????????? | | ????????????????????????????????????????????????? | | ????????????????????????????????????????????????? | | ????????????????????????????????????????????????? | | | | | | | +----------------------------------------------------+ Best States ------------- Heat Dissipation 48 Energy Generation 23 Energy Capacity 200 Matter Stores 300 Matter Capacity 300 Sight Range 16 Robot Scan Range 14 Terrain Scan Range 16 Terrain Scan Density 110 Armor Coverage 450 Evasion (%) 63 Recoil Reduction 1 Item Schematics ----------------- None Robot Schematics ------------------ None Fabricated ------------ Nothing Repaired ---------- Nothing Studied --------- None Alien Tech Used ----------------- None Achievements -------------- Heavy Suspicion Physics Hates This One Trick Throw Away The Key Challenges ------------ None Game ------ Seed SpreadLightningForcegen Manual? 0 Play Time 00:14:16 Cumulative 1.2 hours Start 2026.08.03 @ 14:22:05 End 2026.08.03 @ 16:44:16 Sessions 2 Manual Loads 0 Difficulty Rogue Special Mode None Game No. 3 Rogue 3 Adventurer 0 Explorer 0 Win Type - Total 0 Types 0/0/0/0/0/0/0/0/0/0 Lore% 7 Gallery% 3 Achievement% 13 Wizard Run 0 Options --------- Layout 0 ASCII 0 Keyboard 1 Movement Numpad Keybinds 0 Fullscreen 1 Font 24/Smallcaps Map View 76x50 Zoom Use 0% Tactical HUD 1 Map Filters NONE Filters NONE Steam 1 RUN: 60c35b71-906e-4acc-9e09-a72693d92c34